[Event "Early-Titled-Tuesday-Blitz-May-14-2024"]
[Site "Chess.com"]
[Date "2024.05.14"]
[Round "2"]
[White "campochess"]
[Black "andrzej"]
[Result "0-1"]
[WhiteElo "2101"]
[BlackElo "2465"]
[TimeControl "180+1"]
[EndTime "8:19:49 PDT"]
[Termination "andrzej won on time"]

1. Nc3 {[%clk 0:02:59.8]} 1... d5 {[%clk 0:02:59.6]} 2. d4 {[%clk 0:02:59.8]}
2... Nf6 {[%clk 0:02:59.2]} 3. Bf4 {[%clk 0:02:59.5]} 3... c5 {[%clk 0:02:59.6]}
4. e3 {[%clk 0:02:53.4]} 4... cxd4 {[%clk 0:02:59.8]} 5. exd4 {[%clk 0:02:53]}
5... a6 {[%clk 0:03:00.3]} 6. Be2 {[%clk 0:02:50.1]} 6... Nc6 {[%clk 0:02:58.7]}
7. Nf3 {[%clk 0:02:50]} 7... Bf5 {[%clk 0:02:42.8]} 8. a3 {[%clk 0:02:47.9]}
8... h6 {[%clk 0:02:41.5]} 9. Ne5 {[%clk 0:02:47.6]} 9... Rc8 {[%clk 0:02:38.6]}
10. O-O {[%clk 0:02:41.6]} 10... e6 {[%clk 0:02:38.6]} 11. Nxc6 {[%clk
0:02:39.7]} 11... Rxc6 {[%clk 0:02:38.1]} 12. Rc1 {[%clk 0:02:37.8]} 12... Bd6
{[%clk 0:02:34.8]} 13. Bg3 {[%clk 0:02:35.7]} 13... O-O {[%clk 0:02:34.7]} 14.
Bd3 {[%clk 0:02:27.1]} 14... Bxd3 {[%clk 0:02:33.2]} 15. cxd3 {[%clk 0:02:22.6]}
15... Bxg3 {[%clk 0:02:31.4]} 16. hxg3 {[%clk 0:02:19.8]} 16... Qb6 {[%clk
0:02:31.3]} 17. Qe2 {[%clk 0:02:19.1]} 17... Qxd4 {[%clk 0:02:29.6]} 18. Rcd1
{[%clk 0:02:15.5]} 18... e5 {[%clk 0:02:19.8]} 19. Qe3 {[%clk 0:02:06.5]} 19...
Qxe3 {[%clk 0:02:13.6]} 20. fxe3 {[%clk 0:02:06.5]} 20... d4 {[%clk 0:02:07]}
21. exd4 {[%clk 0:02:04.5]} 21... exd4 {[%clk 0:02:07.9]} 22. Ne2 {[%clk
0:01:57.9]} 22... Rd8 {[%clk 0:02:04.9]} 23. Rd2 {[%clk 0:01:56.2]} 23... Ng4
{[%clk 0:01:59.7]} 24. Rf4 {[%clk 0:01:53.4]} 24... h5 {[%clk 0:01:46.7]} 25.
Kf1 {[%clk 0:01:49.9]} 25... g6 {[%clk 0:01:35.8]} 26. Rxd4 {[%clk 0:01:42.6]}
26... Re8 {[%clk 0:01:24]} 27. Re4 {[%clk 0:01:39.7]} 27... Rce6 {[%clk
0:01:18.7]} 28. Nc3 {[%clk 0:01:37.5]} 28... f5 {[%clk 0:01:13.9]} 29. Rxe6
{[%clk 0:01:36.1]} 29... Rxe6 {[%clk 0:01:14.8]} 30. Re2 {[%clk 0:01:35.5]}
30... Rd6 {[%clk 0:01:13.7]} 31. Rd2 {[%clk 0:01:25.4]} 31... Kf7 {[%clk
0:01:07.5]} 32. Ke2 {[%clk 0:01:25.4]} 32... Ke6 {[%clk 0:01:02.7]} 33. Nd1
{[%clk 0:01:23]} 33... Ne5 {[%clk 0:01:00.4]} 34. Nf2 {[%clk 0:01:12]} 34... Nc6
{[%clk 0:00:59.2]} 35. Nh3 {[%clk 0:01:09.2]} 35... Nd4+ {[%clk 0:00:56.6]} 36.
Ke3 {[%clk 0:01:04.4]} 36... Kf6 {[%clk 0:00:52.1]} 37. Nf4 {[%clk 0:01:03.6]}
37... Nc6 {[%clk 0:00:50.2]} 38. d4 {[%clk 0:01:01.5]} 38... g5 {[%clk
0:00:46.6]} 39. Ne2 {[%clk 0:01:00.6]} 39... Ne7 {[%clk 0:00:45.9]} 40. Nc3
{[%clk 0:00:58.1]} 40... b5 {[%clk 0:00:40.9]} 41. Na2 {[%clk 0:00:39.3]} 41...
Nd5+ {[%clk 0:00:39.6]} 42. Kf2 {[%clk 0:00:39.3]} 42... Rc6 {[%clk 0:00:36.8]}
43. Re2 {[%clk 0:00:31.2]} 43... Re6 {[%clk 0:00:33]} 44. Rc2 {[%clk 0:00:30.2]}
44... f4 {[%clk 0:00:30.1]} 45. gxf4 {[%clk 0:00:28.9]} 45... Nxf4 {[%clk
0:00:30.1]} 46. Nb4 {[%clk 0:00:28.7]} 46... a5 {[%clk 0:00:27.2]} 47. Nc6
{[%clk 0:00:26.8]} 47... Nd3+ {[%clk 0:00:26.9]} 48. Kg1 {[%clk 0:00:23.4]}
48... Re1+ {[%clk 0:00:14.1]} 49. Kh2 {[%clk 0:00:23.2]} 49... Nf4 {[%clk
0:00:13.5]} 50. Nxa5 {[%clk 0:00:19]} 50... Rd1 {[%clk 0:00:13.4]} 51. Nc6
{[%clk 0:00:17.3]} 51... h4 {[%clk 0:00:10.4]} 52. Rf2 {[%clk 0:00:16.2]} 52...
Kg6 {[%clk 0:00:09.9]} 53. g3 {[%clk 0:00:16.2]} 53... hxg3+ {[%clk 0:00:09.2]}
54. Kxg3 {[%clk 0:00:16.3]} 54... Rg1+ {[%clk 0:00:09.6]} 55. Kh2 {[%clk
0:00:16.1]} 55... Rc1 {[%clk 0:00:10.2]} 56. Ne5+ {[%clk 0:00:15]} 56... Kf5
{[%clk 0:00:07.4]} 57. Rd2 {[%clk 0:00:14.9]} 57... Rb1 {[%clk 0:00:06.8]} 58.
Nd3 {[%clk 0:00:14.2]} 58... Nxd3 {[%clk 0:00:06.6]} 59. Rxd3 {[%clk 0:00:14.2]}
59... Rxb2+ {[%clk 0:00:07]} 60. Kg3 {[%clk 0:00:14.4]} 60... Ke4 {[%clk
0:00:07.5]} 61. Rc3 {[%clk 0:00:12.8]} 61... Kxd4 {[%clk 0:00:07.5]} 62. Rc7
{[%clk 0:00:12.8]} 62... Rb3+ {[%clk 0:00:07.3]} 63. Kg4 {[%clk 0:00:12.9]}
63... Rxa3 {[%clk 0:00:08.2]} 64. Kxg5 {[%clk 0:00:12.9]} 64... b4 {[%clk
0:00:08.7]} 65. Kf4 {[%clk 0:00:13]} 65... b3 {[%clk 0:00:08.9]} 66. Rb7 {[%clk
0:00:12.7]} 66... Kc3 {[%clk 0:00:08.6]} 67. Ke3 {[%clk 0:00:12.7]} 67... Ra1
{[%clk 0:00:08.6]} 68. Rc7+ {[%clk 0:00:11.6]} 68... Kb2 {[%clk 0:00:08.7]} 69.
Kd2 {[%clk 0:00:09.6]} 69... Rh1 {[%clk 0:00:08.8]} 70. Rc6 {[%clk 0:00:06.7]}
70... Rh7 {[%clk 0:00:08.9]} 71. Rd6 {[%clk 0:00:04.7]} 71... Rc7 {[%clk
0:00:09.2]} 72. Ra6 {[%clk 0:00:02.8]} 72... Rd7+ {[%clk 0:00:08.6]} 73. Ke3
{[%clk 0:00:01.6]} 73... Rd5 {[%clk 0:00:08.6]} 74. Ke2 {[%clk 0:00:00.6]} 74...
Kc1 {[%clk 0:00:08.6]} 0-1

[Event "Early-Titled-Tuesday-Blitz-May-14-2024"]
[Site "Chess.com"]
[Date "2024.05.14"]
[Round "2"]
[White "czechbul17"]
[Black "SaqoChess_Twitch"]
[Result "0-1"]
[WhiteElo "2170"]
[BlackElo "2684"]
[TimeControl "180+1"]
[EndTime "8:19:54 PDT"]
[Termination "SaqoChess_Twitch won on time"]

1. d4 {[%clk 0:03:00.9]} 1... d5 {[%clk 0:02:59.8]} 2. c4 {[%clk 0:03:01]} 2...
e6 {[%clk 0:02:58.7]} 3. Nf3 {[%clk 0:03:01.2]} 3... Nf6 {[%clk 0:02:56.4]} 4.
g3 {[%clk 0:03:01.6]} 4... Be7 {[%clk 0:02:56]} 5. Bg2 {[%clk 0:03:01.6]} 5...
O-O {[%clk 0:02:56.7]} 6. O-O {[%clk 0:03:01.2]} 6... dxc4 {[%clk 0:02:57]} 7.
Qc2 {[%clk 0:03:01.3]} 7... a6 {[%clk 0:02:56.5]} 8. a4 {[%clk 0:03:01.4]} 8...
c5 {[%clk 0:02:56.1]} 9. dxc5 {[%clk 0:02:55.2]} 9... Bxc5 {[%clk 0:02:57]} 10.
Qxc4 {[%clk 0:02:55.6]} 10... Nbd7 {[%clk 0:02:56.6]} 11. Rd1 {[%clk 0:02:51.4]}
11... Qe7 {[%clk 0:02:49.8]} 12. a5 {[%clk 0:02:39.9]} 12... b5 {[%clk
0:02:43.4]} 13. axb6 {[%clk 0:02:38.2]} 13... Nxb6 {[%clk 0:02:42.8]} 14. Qh4
{[%clk 0:02:38.6]} 14... Bb7 {[%clk 0:02:40.9]} 15. Nc3 {[%clk 0:02:36]} 15...
Rfd8 {[%clk 0:02:36.2]} 16. Bg5 {[%clk 0:02:19.6]} 16... h6 {[%clk 0:02:31.7]}
17. Bxf6 {[%clk 0:02:19.5]} 17... Qxf6 {[%clk 0:02:32.6]} 18. Qxf6 {[%clk
0:02:11.4]} 18... gxf6 {[%clk 0:02:33.5]} 19. Nd2 {[%clk 0:02:06.7]} 19... Bxg2
{[%clk 0:02:31.5]} 20. Kxg2 {[%clk 0:02:07.6]} 20... Bb4 {[%clk 0:02:25.6]} 21.
Nf3 {[%clk 0:01:39.6]} 21... Bxc3 {[%clk 0:02:16.3]} 22. bxc3 {[%clk 0:01:39]}
22... Rxd1 {[%clk 0:02:13.9]} 23. Rxd1 {[%clk 0:01:39.9]} 23... Rc8 {[%clk
0:02:13.7]} 24. Ra1 {[%clk 0:01:36.5]} 24... Ra8 {[%clk 0:02:12.1]} 25. Ra5
{[%clk 0:01:19.6]} 25... Nc4 {[%clk 0:02:10.7]} 26. Rc5 {[%clk 0:01:19.9]} 26...
Nd6 {[%clk 0:02:04.3]} 27. Nd2 {[%clk 0:01:09.9]} 27... a5 {[%clk 0:02:03.2]}
28. Nb1 {[%clk 0:01:10.4]} 28... a4 {[%clk 0:01:54.8]} 29. Na3 {[%clk
0:01:10.7]} 29... Kg7 {[%clk 0:01:50.7]} 30. Rc6 {[%clk 0:01:03.8]} 30... Nf5
{[%clk 0:01:49.1]} 31. e4 {[%clk 0:00:57.8]} 31... Ne7 {[%clk 0:01:46.8]} 32.
Rc7 {[%clk 0:00:51.7]} 32... Kf8 {[%clk 0:01:45.6]} 33. Kf3 {[%clk 0:00:51]}
33... f5 {[%clk 0:01:45.1]} 34. c4 {[%clk 0:00:40.7]} 34... fxe4+ {[%clk
0:01:44.7]} 35. Kxe4 {[%clk 0:00:40.8]} 35... Nf5 {[%clk 0:01:45.4]} 36. c5
{[%clk 0:00:29.3]} 36... Rd8 {[%clk 0:01:43]} 37. Nb5 {[%clk 0:00:21.5]} 37...
Rb8 {[%clk 0:01:36.8]} 38. Nc3 {[%clk 0:00:13]} 38... a3 {[%clk 0:01:36.5]} 39.
Ra7 {[%clk 0:00:12.8]} 39... Kg7 {[%clk 0:01:32.4]} 40. Rxa3 {[%clk 0:00:12]}
40... Rb4+ {[%clk 0:01:33]} 41. Kd3 {[%clk 0:00:11.5]} 41... Rd4+ {[%clk
0:01:33.6]} 42. Ke2 {[%clk 0:00:11]} 42... Rc4 {[%clk 0:01:34.5]} 43. c6 {[%clk
0:00:09.7]} 43... Rxc6 {[%clk 0:01:34.4]} 44. Ne4 {[%clk 0:00:10.4]} 44... Nd4+
{[%clk 0:01:34.6]} 45. Kf1 {[%clk 0:00:09.9]} 45... Rb6 {[%clk 0:01:32.8]} 46.
Rd3 {[%clk 0:00:09.9]} 46... Rb1+ {[%clk 0:01:32.9]} 47. Kg2 {[%clk 0:00:10.3]}
47... Nf5 {[%clk 0:01:33.8]} 48. Rd2 {[%clk 0:00:10.6]} 48... h5 {[%clk
0:01:33.8]} 49. Nd6 {[%clk 0:00:10.7]} 49... Nh6 {[%clk 0:01:33.3]} 50. h4
{[%clk 0:00:10.7]} 50... Kg6 {[%clk 0:01:33.5]} 51. Nc4 {[%clk 0:00:10.6]} 51...
Ng4 {[%clk 0:01:34]} 52. Re2 {[%clk 0:00:09.1]} 52... Rb5 {[%clk 0:01:34.7]} 53.
Ne3 {[%clk 0:00:08.5]} 53... Re5 {[%clk 0:01:33.4]} 54. Kf3 {[%clk 0:00:08.6]}
54... Nf6 {[%clk 0:01:31.6]} 55. Nc4 {[%clk 0:00:08.5]} 55... Rf5+ {[%clk
0:01:31.6]} 56. Kg2 {[%clk 0:00:08.8]} 56... Rc5 {[%clk 0:01:29.8]} 57. Ne5+
{[%clk 0:00:08.4]} 57... Kg7 {[%clk 0:01:30.5]} 58. Nd3 {[%clk 0:00:08.9]} 58...
Rb5 {[%clk 0:01:30.2]} 59. Re5 {[%clk 0:00:08]} 59... Rb3 {[%clk 0:01:28.3]} 60.
Nf4 {[%clk 0:00:08]} 60... Kh6 {[%clk 0:01:28]} 61. Re2 {[%clk 0:00:08]} 61...
Ra3 {[%clk 0:01:28.1]} 62. Kf1 {[%clk 0:00:06.7]} 62... Ng4 {[%clk 0:01:27.5]}
63. Kg2 {[%clk 0:00:06.5]} 63... e5 {[%clk 0:01:27.3]} 64. Nd5 {[%clk
0:00:06.2]} 64... f5 {[%clk 0:01:27]} 65. Ne7 {[%clk 0:00:05.9]} 65... f4 {[%clk
0:01:25.3]} 66. gxf4 {[%clk 0:00:06.1]} 66... exf4 {[%clk 0:01:26.2]} 67. Nf5+
{[%clk 0:00:04.8]} 67... Kg6 {[%clk 0:01:25.8]} 68. Nd4 {[%clk 0:00:05.7]} 68...
Rd3 {[%clk 0:01:25.7]} 69. Nf3 {[%clk 0:00:05.8]} 69... Kf5 {[%clk 0:01:24.7]}
70. Ra2 {[%clk 0:00:05.7]} 70... Rd5 {[%clk 0:01:23]} 71. Rc2 {[%clk 0:00:05.5]}
71... Ra5 {[%clk 0:01:22.7]} 72. Rb2 {[%clk 0:00:05.8]} 72... Nf6 {[%clk
0:01:22.3]} 73. Nd4+ {[%clk 0:00:05.1]} 73... Kg4 {[%clk 0:01:22.2]} 74. f3+
{[%clk 0:00:04.9]} 74... Kxh4 {[%clk 0:01:22.4]} 75. Rb6 {[%clk 0:00:04.7]}
75... Ra2+ {[%clk 0:01:20.6]} 76. Kg1 {[%clk 0:00:04.2]} 76... Nd5 {[%clk
0:01:20.2]} 77. Rg6 {[%clk 0:00:03.8]} 77... Ne3 {[%clk 0:01:19.7]} 78. Ne6
{[%clk 0:00:03.2]} 78... Ra1+ {[%clk 0:01:17.6]} 79. Kh2 {[%clk 0:00:02.7]}
79... Ra2+ {[%clk 0:01:08]} 80. Kg1 {[%clk 0:00:02.8]} 80... Nd5 {[%clk
0:01:04.7]} 81. Ng7 {[%clk 0:00:01.8]} 81... Kh3 {[%clk 0:01:01.2]} 82. Nxh5
{[%clk 0:00:01.7]} 82... Ra4 {[%clk 0:00:39.1]} 83. Kf2 {[%clk 0:00:01.9]} 83...
Ra2+ {[%clk 0:00:39]} 84. Kg1 {[%clk 0:00:02.2]} 84... Rb2 {[%clk 0:00:38.7]}
85. Nxf4+ {[%clk 0:00:02.3]} 85... Nxf4 {[%clk 0:00:38.3]} 86. Rh6+ {[%clk
0:00:03]} 86... Kg3 {[%clk 0:00:38.5]} 87. Rg6+ {[%clk 0:00:01.2]} 87... Nxg6
{[%clk 0:00:38.3]} 0-1

[Event "Early-Titled-Tuesday-Blitz-May-14-2024"]
[Site "Chess.com"]
[Date "2024.05.14"]
[Round "2"]
[White "GMSrinath"]
[Black "becemix"]
[Result "1/2-1/2"]
[WhiteElo "2845"]
[BlackElo "2594"]
[TimeControl "180+1"]
[EndTime "8:19:56 PDT"]
[Termination "Game drawn - insufficient material"]

1. Nf3 {[%clk 0:02:44.3]} 1... d5 {[%clk 0:02:59.5]} 2. e3 {[%clk 0:02:44.4]}
2... Bg4 {[%clk 0:02:58]} 3. c4 {[%clk 0:02:40.6]} 3... c6 {[%clk 0:02:28.4]} 4.
Qb3 {[%clk 0:02:33.4]} 4... Bc8 {[%clk 0:01:59.9]} 5. Nc3 {[%clk 0:02:29]} 5...
e6 {[%clk 0:01:59.2]} 6. d4 {[%clk 0:02:28.9]} 6... Nf6 {[%clk 0:01:59]} 7. Bd3
{[%clk 0:02:29]} 7... Nbd7 {[%clk 0:01:55]} 8. O-O {[%clk 0:02:28.8]} 8... Be7
{[%clk 0:01:52.9]} 9. e4 {[%clk 0:02:29.3]} 9... dxe4 {[%clk 0:01:52.8]} 10.
Nxe4 {[%clk 0:02:30.2]} 10... O-O {[%clk 0:01:48.1]} 11. Bf4 {[%clk 0:02:29.2]}
11... Nxe4 {[%clk 0:01:24.4]} 12. Bxe4 {[%clk 0:02:29]} 12... Nf6 {[%clk
0:01:24.7]} 13. Bc2 {[%clk 0:02:29]} 13... Qb6 {[%clk 0:01:18]} 14. Qd3 {[%clk
0:01:38.8]} 14... c5 {[%clk 0:01:17.8]} 15. Be5 {[%clk 0:01:33.6]} 15... g6
{[%clk 0:01:17.9]} 16. dxc5 {[%clk 0:01:10.1]} 16... Qxc5 {[%clk 0:01:18.8]} 17.
Rad1 {[%clk 0:01:04.5]} 17... Nd7 {[%clk 0:01:10.8]} 18. Bd4 {[%clk 0:01:03.2]}
18... Qh5 {[%clk 0:01:10.6]} 19. Rfe1 {[%clk 0:00:58.2]} 19... b6 {[%clk
0:01:00.7]} 20. Qe4 {[%clk 0:00:51.9]} 20... Rb8 {[%clk 0:01:00.1]} 21. Qf4
{[%clk 0:00:52.5]} 21... Bb7 {[%clk 0:00:52.4]} 22. Ne5 {[%clk 0:00:50.1]} 22...
Nxe5 {[%clk 0:00:42.3]} 23. Bxe5 {[%clk 0:00:51]} 23... Rbd8 {[%clk 0:00:40.4]}
24. Qe3 {[%clk 0:00:46.4]} 24... Qg4 {[%clk 0:00:27.9]} 25. Bg3 {[%clk
0:00:45.3]} 25... Qxc4 {[%clk 0:00:27.2]} 26. Bb3 {[%clk 0:00:45.9]} 26... Qc5
{[%clk 0:00:25.2]} 27. Qe2 {[%clk 0:00:44.4]} 27... Rxd1 {[%clk 0:00:24.4]} 28.
Rxd1 {[%clk 0:00:45.3]} 28... Rd8 {[%clk 0:00:24.7]} 29. Re1 {[%clk 0:00:36.5]}
29... Bf6 {[%clk 0:00:24.1]} 30. h4 {[%clk 0:00:30.8]} 30... h5 {[%clk
0:00:23.6]} 31. Kh2 {[%clk 0:00:19.7]} 31... Qd4 {[%clk 0:00:23]} 32. f4 {[%clk
0:00:14.3]} 32... Qxb2 {[%clk 0:00:21.5]} 33. Qxb2 {[%clk 0:00:13.2]} 33... Bxb2
{[%clk 0:00:22.4]} 34. Re2 {[%clk 0:00:14.1]} 34... Bc3 {[%clk 0:00:21.6]} 35.
Rc2 {[%clk 0:00:14.4]} 35... Ba5 {[%clk 0:00:21.5]} 36. Rc7 {[%clk 0:00:14.7]}
36... Bd5 {[%clk 0:00:19]} 37. Rxa7 {[%clk 0:00:15.2]} 37... Bxb3 {[%clk
0:00:18.7]} 38. axb3 {[%clk 0:00:16.1]} 38... Rd3 {[%clk 0:00:18.6]} 39. f5
{[%clk 0:00:16.4]} 39... gxf5 {[%clk 0:00:12.2]} 40. Be5 {[%clk 0:00:16.9]}
40... Rd8 {[%clk 0:00:12.6]} 41. Rb7 {[%clk 0:00:14.8]} 41... Rc8 {[%clk
0:00:07.3]} 42. g3 {[%clk 0:00:15]} 42... Bc3 {[%clk 0:00:07.2]} 43. Bc7 {[%clk
0:00:10.8]} 43... Bd4 {[%clk 0:00:06.3]} 44. b4 {[%clk 0:00:11.3]} 44... Be3
{[%clk 0:00:06.3]} 45. Kh3 {[%clk 0:00:10.9]} 45... Kg7 {[%clk 0:00:06.5]} 46.
b5 {[%clk 0:00:11]} 46... Kg6 {[%clk 0:00:06.2]} 47. Bxb6 {[%clk 0:00:09.4]}
47... Bxb6 {[%clk 0:00:05.8]} 48. Rxb6 {[%clk 0:00:10.3]} 48... Rc3 {[%clk
0:00:06.5]} 49. Kg2 {[%clk 0:00:10.9]} 49... Rb3 {[%clk 0:00:06.6]} 50. Rb8
{[%clk 0:00:11.6]} 50... f4 {[%clk 0:00:06.8]} 51. gxf4 {[%clk 0:00:10.3]} 51...
Kf5 {[%clk 0:00:07.3]} 52. Rh8 {[%clk 0:00:11.1]} 52... Kxf4 {[%clk 0:00:05.8]}
53. Rxh5 {[%clk 0:00:11.5]} 53... f5 {[%clk 0:00:06]} 54. Rh6 {[%clk 0:00:10.4]}
54... Ke5 {[%clk 0:00:06.1]} 55. h5 {[%clk 0:00:08.4]} 55... Rxb5 {[%clk
0:00:06.6]} 56. Rg6 {[%clk 0:00:09.3]} 56... Rb8 {[%clk 0:00:05.8]} 57. Kg3
{[%clk 0:00:09.5]} 57... Ke4 {[%clk 0:00:05.8]} 58. Rxe6+ {[%clk 0:00:08.7]}
58... Kd5 {[%clk 0:00:06]} 59. Rg6 {[%clk 0:00:09.6]} 59... Ke5 {[%clk
0:00:06.3]} 60. h6 {[%clk 0:00:09.2]} 60... Rh8 {[%clk 0:00:03.9]} 61. Kh4
{[%clk 0:00:09.6]} 61... Kf4 {[%clk 0:00:03.5]} 62. Kh5 {[%clk 0:00:09.6]} 62...
Ke3 {[%clk 0:00:03.5]} 63. Re6+ {[%clk 0:00:09]} 63... Kf3 {[%clk 0:00:03.7]}
64. Rf6 {[%clk 0:00:08.1]} 64... f4 {[%clk 0:00:03.9]} 65. Kg5 {[%clk 0:00:09]}
65... Kg3 {[%clk 0:00:04.4]} 66. Kg6 {[%clk 0:00:03]} 66... f3 {[%clk
0:00:04.1]} 67. Kg7 {[%clk 0:00:03.9]} 67... Rxh6 {[%clk 0:00:04.1]} 68. Kxh6
{[%clk 0:00:04.8]} 68... f2 {[%clk 0:00:04.6]} 69. Kg5 {[%clk 0:00:05.7]} 69...
Kg2 {[%clk 0:00:05.1]} 70. Rxf2+ {[%clk 0:00:05.9]} 70... Kxf2 {[%clk
0:00:05.4]} 1/2-1/2

[Event "Early-Titled-Tuesday-Blitz-May-14-2024"]
[Site "Chess.com"]
[Date "2024.05.14"]
[Round "2"]
[White "Dacean99"]
[Black "jaramsdal"]
[Result "0-1"]
[WhiteElo "2607"]
[BlackElo "2389"]
[TimeControl "180+1"]
[EndTime "8:19:58 PDT"]
[Termination "jaramsdal won by resignation"]

1. e4 {[%clk 0:03:00.9]} 1... c5 {[%clk 0:02:56.6]} 2. c3 {[%clk 0:02:58.6]}
2... Nf6 {[%clk 0:02:55.1]} 3. e5 {[%clk 0:02:58.5]} 3... Nd5 {[%clk 0:02:55.7]}
4. Nf3 {[%clk 0:02:58.6]} 4... d6 {[%clk 0:02:54.6]} 5. exd6 {[%clk 0:02:58.2]}
5... e6 {[%clk 0:02:53.8]} 6. g3 {[%clk 0:02:57.9]} 6... Bxd6 {[%clk 0:02:52.6]}
7. Bg2 {[%clk 0:02:58.5]} 7... Nc6 {[%clk 0:02:53.1]} 8. O-O {[%clk 0:02:58.4]}
8... O-O {[%clk 0:02:51]} 9. d4 {[%clk 0:02:58.7]} 9... cxd4 {[%clk 0:02:51.9]}
10. Nxd4 {[%clk 0:02:59]} 10... Nxd4 {[%clk 0:02:50.5]} 11. Qxd4 {[%clk
0:02:59.9]} 11... Qc7 {[%clk 0:02:48.9]} 12. Rd1 {[%clk 0:02:54.1]} 12... Be5
{[%clk 0:02:19.3]} 13. Qh4 {[%clk 0:02:51]} 13... Bd7 {[%clk 0:02:15.7]} 14. Nd2
{[%clk 0:02:46.3]} 14... Bc6 {[%clk 0:02:14.2]} 15. Nf3 {[%clk 0:02:46.1]} 15...
Bf6 {[%clk 0:02:11.7]} 16. Bg5 {[%clk 0:02:46]} 16... h6 {[%clk 0:02:05.6]} 17.
Bxf6 {[%clk 0:02:43.9]} 17... Nxf6 {[%clk 0:02:06.5]} 18. Rd4 {[%clk 0:02:30.5]}
18... Rad8 {[%clk 0:02:05.3]} 19. Rad1 {[%clk 0:02:29.1]} 19... Rxd4 {[%clk
0:02:05.4]} 20. Qxd4 {[%clk 0:02:25.9]} 20... Bd5 {[%clk 0:01:58]} 21. b3 {[%clk
0:02:24.2]} 21... b5 {[%clk 0:01:50]} 22. Qe5 {[%clk 0:02:06.3]} 22... Rc8
{[%clk 0:01:48.7]} 23. Qxc7 {[%clk 0:02:04]} 23... Rxc7 {[%clk 0:01:49.6]} 24.
Nd4 {[%clk 0:02:03.8]} 24... Bxg2 {[%clk 0:01:45.2]} 25. Kxg2 {[%clk 0:02:04.7]}
25... a6 {[%clk 0:01:43.5]} 26. Rc1 {[%clk 0:02:01.6]} 26... Kf8 {[%clk
0:01:27.1]} 27. c4 {[%clk 0:02:01.2]} 27... Ke7 {[%clk 0:01:21.1]} 28. c5 {[%clk
0:01:59.3]} 28... g6 {[%clk 0:01:14.8]} 29. b4 {[%clk 0:01:58.7]} 29... Nd5
{[%clk 0:01:13.1]} 30. a3 {[%clk 0:01:56.3]} 30... Rd7 {[%clk 0:01:07.9]} 31.
Nc6+ {[%clk 0:01:48.8]} 31... Ke8 {[%clk 0:01:04.6]} 32. Kf3 {[%clk 0:01:39.8]}
32... Rc7 {[%clk 0:01:04.4]} 33. Ne5 {[%clk 0:01:30.4]} 33... a5 {[%clk
0:00:48]} 34. bxa5 {[%clk 0:01:22.1]} 34... Ra7 {[%clk 0:00:48.6]} 35. Nc6
{[%clk 0:01:22]} 35... Ra6 {[%clk 0:00:49.2]} 36. Nd4 {[%clk 0:01:22.4]} 36...
Rxa5 {[%clk 0:00:47.2]} 37. c6 {[%clk 0:01:20.8]} 37... Rxa3+ {[%clk 0:00:45.7]}
38. Ke4 {[%clk 0:01:12]} 38... Nc7 {[%clk 0:00:46]} 39. Ke5 {[%clk 0:01:11.4]}
39... Ke7 {[%clk 0:00:46.5]} 40. Rd1 {[%clk 0:01:06.5]} 40... f6+ {[%clk
0:00:46.6]} 41. Ke4 {[%clk 0:01:06.3]} 41... Ra4 {[%clk 0:00:46.3]} 42. Kf3
{[%clk 0:01:05.6]} 42... Rc4 {[%clk 0:00:43.4]} 43. Ke2 {[%clk 0:00:46.6]} 43...
e5 {[%clk 0:00:42.3]} 44. Nf5+ {[%clk 0:00:46.4]} 44... gxf5 {[%clk 0:00:35.1]}
45. Rd7+ {[%clk 0:00:46.3]} 45... Ke6 {[%clk 0:00:35.7]} 46. Rxc7 {[%clk
0:00:46.7]} 46... b4 {[%clk 0:00:32.5]} 47. Rb7 {[%clk 0:00:44]} 47... Rxc6
{[%clk 0:00:26.7]} 48. Rxb4 {[%clk 0:00:41.8]} 48... Rc2+ {[%clk 0:00:23.4]} 49.
Kf3 {[%clk 0:00:40.6]} 49... e4+ {[%clk 0:00:22.5]} 50. Ke3 {[%clk 0:00:34.9]}
50... Rc3+ {[%clk 0:00:22.7]} 51. Ke2 {[%clk 0:00:35.1]} 51... Kf7 {[%clk
0:00:20.1]} 52. h4 {[%clk 0:00:34]} 52... Kg6 {[%clk 0:00:20.1]} 53. Rb6 {[%clk
0:00:33.3]} 53... Ra3 {[%clk 0:00:19.7]} 54. Rb8 {[%clk 0:00:28.6]} 54... Rf3
{[%clk 0:00:19.6]} 55. Rg8+ {[%clk 0:00:27.8]} 55... Kf7 {[%clk 0:00:20]} 56.
Ra8 {[%clk 0:00:27.4]} 56... f4 {[%clk 0:00:19.8]} 57. Ra4 {[%clk 0:00:19.5]}
57... fxg3 {[%clk 0:00:19.3]} 58. fxg3 {[%clk 0:00:20.4]} 58... f5 {[%clk
0:00:17.8]} 59. g4 {[%clk 0:00:20.4]} 59... fxg4 {[%clk 0:00:14.4]} 60. Rxe4
{[%clk 0:00:20.9]} 60... h5 {[%clk 0:00:15]} 61. Re5 {[%clk 0:00:21]} 61... Kg6
{[%clk 0:00:14.4]} 62. Re6+ {[%clk 0:00:20.6]} 62... Rf6 {[%clk 0:00:15]} 63.
Re5 {[%clk 0:00:19.8]} 63... Ra6 {[%clk 0:00:13.9]} 64. Ke3 {[%clk 0:00:18.9]}
64... Ra3+ {[%clk 0:00:13.7]} 65. Kf4 {[%clk 0:00:19.4]} 65... Rf3+ {[%clk
0:00:14.4]} 66. Ke4 {[%clk 0:00:19.9]} 66... Rh3 {[%clk 0:00:14.9]} 67. Re6+
{[%clk 0:00:20]} 67... Kf7 {[%clk 0:00:14.8]} 68. Rh6 {[%clk 0:00:19]} 68...
Rxh4 {[%clk 0:00:15]} 69. Kf4 {[%clk 0:00:19.5]} 69... Rh1 {[%clk 0:00:13.7]}
70. Kg5 {[%clk 0:00:18.5]} 70... g3 {[%clk 0:00:12.9]} 71. Rf6+ {[%clk
0:00:18.5]} 71... Ke7 {[%clk 0:00:13.3]} 72. Rg6 {[%clk 0:00:16.2]} 72... g2
{[%clk 0:00:12.7]} 73. Rg7+ {[%clk 0:00:16.6]} 73... Ke6 {[%clk 0:00:13]} 74.
Rg6+ {[%clk 0:00:16.1]} 74... Ke5 {[%clk 0:00:13.5]} 75. Kh6 {[%clk 0:00:15.1]}
75... g1=Q {[%clk 0:00:13.5]} 76. Ra6 {[%clk 0:00:13.2]} 76... Qc1+ {[%clk
0:00:12.2]} 77. Kh7 {[%clk 0:00:11.3]} 77... Qc7+ {[%clk 0:00:12]} 78. Kh6
{[%clk 0:00:11.4]} 78... Rc1 {[%clk 0:00:11.3]} 79. Rg6 {[%clk 0:00:09.9]} 79...
Rc6 {[%clk 0:00:11.1]} 80. Kxh5 {[%clk 0:00:07.7]} 80... Rxg6 {[%clk 0:00:11]}
81. Kxg6 {[%clk 0:00:08.6]} 81... Qd6+ {[%clk 0:00:11.7]} 82. Kh5 {[%clk
0:00:07.2]} 82... Qf8 {[%clk 0:00:10.3]} 83. Kg6 {[%clk 0:00:06.9]} 83... Qg8+
{[%clk 0:00:10]} 0-1